[Event "Early-Titled-Tuesday-Blitz-March-19-2024"]
[Site "Chess.com"]
[Date "2024.03.19"]
[Round "11"]
[White "Shield12"]
[Black "HansOnTwitch"]
[Result "1/2-1/2"]
[WhiteElo "2959"]
[BlackElo "3078"]
[TimeControl "180+1"]
[EndTime "10:07:21 PDT"]
[Termination "Game drawn - insufficient material"]

1. e4 {[%clk 0:03:00.9]} 1... c5 {[%clk 0:02:44.2]} 2. Nf3 {[%clk 0:03:01]} 2...
d6 {[%clk 0:02:42.6]} 3. Bb5+ {[%clk 0:03:00.3]} 3... Nd7 {[%clk 0:02:42.4]} 4.
a4 {[%clk 0:02:59.8]} 4... Nf6 {[%clk 0:02:41.8]} 5. Nc3 {[%clk 0:02:59.9]} 5...
a6 {[%clk 0:02:42.2]} 6. Be2 {[%clk 0:02:59.8]} 6... e6 {[%clk 0:02:42.8]} 7. d4
{[%clk 0:02:57.9]} 7... cxd4 {[%clk 0:02:42.7]} 8. Qxd4 {[%clk 0:02:58.8]} 8...
b6 {[%clk 0:02:43.1]} 9. O-O {[%clk 0:02:58.4]} 9... Bb7 {[%clk 0:02:43.1]} 10.
Rd1 {[%clk 0:02:59]} 10... Qc7 {[%clk 0:02:43.6]} 11. Be3 {[%clk 0:02:59]} 11...
Ng4 {[%clk 0:02:43.1]} 12. Bg5 {[%clk 0:02:59.1]} 12... h6 {[%clk 0:02:41.9]}
13. Bh4 {[%clk 0:02:59.3]} 13... Nge5 {[%clk 0:02:41.8]} 14. Nd2 {[%clk
0:02:57.5]} 14... g5 {[%clk 0:02:41.9]} 15. Bg3 {[%clk 0:02:56.3]} 15... h5
{[%clk 0:02:40.4]} 16. h3 {[%clk 0:02:53.8]} 16... h4 {[%clk 0:02:38.5]} 17. Bh2
{[%clk 0:02:54.1]} 17... Rg8 {[%clk 0:02:38.1]} 18. Nc4 {[%clk 0:02:49.5]} 18...
Nxc4 {[%clk 0:02:37.2]} 19. Bxc4 {[%clk 0:02:47.3]} 19... Rc8 {[%clk 0:02:29.3]}
20. Be2 {[%clk 0:02:41.2]} 20... Ne5 {[%clk 0:02:28.8]} 21. Ra3 {[%clk
0:02:32.5]} 21... Nc6 {[%clk 0:02:00.3]} 22. Qe3 {[%clk 0:02:31.2]} 22... Na5
{[%clk 0:01:35.2]} 23. b4 {[%clk 0:02:20.1]} 23... Nc4 {[%clk 0:01:27.8]} 24.
Bxc4 {[%clk 0:02:19.8]} 24... Qxc4 {[%clk 0:01:28.7]} 25. Bxd6 {[%clk
0:02:13.6]} 25... g4 {[%clk 0:01:25.2]} 26. Bxf8 {[%clk 0:02:11.3]} 26... Kxf8
{[%clk 0:01:22]} 27. Rd4 {[%clk 0:02:02.2]} 27... Qc7 {[%clk 0:01:20.5]} 28.
Qh6+ {[%clk 0:01:59.8]} 28... Ke8 {[%clk 0:01:19.9]} 29. hxg4 {[%clk 0:01:57.5]}
29... Rxg4 {[%clk 0:01:18.4]} 30. Qh5 {[%clk 0:01:45.4]} 30... Qf4 {[%clk
0:01:05.2]} 31. Ne2 {[%clk 0:01:41.3]} 31... Qg5 {[%clk 0:01:04.6]} 32. Qxg5
{[%clk 0:01:38]} 32... Rxg5 {[%clk 0:01:05.5]} 33. Rc3 {[%clk 0:01:29.9]} 33...
Rxc3 {[%clk 0:00:47.9]} 34. Nxc3 {[%clk 0:01:30.8]} 34... Ke7 {[%clk 0:00:48.6]}
35. f3 {[%clk 0:01:30.6]} 35... h3 {[%clk 0:00:46.4]} 36. g4 {[%clk 0:01:29.6]}
36... f5 {[%clk 0:00:47]} 37. exf5 {[%clk 0:01:26.8]} 37... Bxf3 {[%clk
0:00:46.7]} 38. fxe6 {[%clk 0:01:20.3]} 38... Bxg4 {[%clk 0:00:45]} 39. Ne4
{[%clk 0:01:11.9]} 39... Rg8 {[%clk 0:00:36]} 40. Kh2 {[%clk 0:01:02.8]} 40...
Bxe6 {[%clk 0:00:34.9]} 41. Rd2 {[%clk 0:00:59.5]} 41... Rc8 {[%clk 0:00:23.6]}
42. a5 {[%clk 0:00:58.6]} 42... bxa5 {[%clk 0:00:22.7]} 43. bxa5 {[%clk
0:00:59.5]} 43... Rc4 {[%clk 0:00:22.1]} 44. Ng5 {[%clk 0:00:59.2]} 44... Bf5
{[%clk 0:00:21.8]} 45. Nxh3 {[%clk 0:00:51.7]} 45... Rh4 {[%clk 0:00:21.1]} 46.
Re2+ {[%clk 0:00:51.8]} 46... Kd6 {[%clk 0:00:21.4]} 47. Re3 {[%clk 0:00:50.5]}
47... Kc5 {[%clk 0:00:21.4]} 48. Re5+ {[%clk 0:00:49.8]} 48... Kb4 {[%clk
0:00:19.7]} 49. Rxf5 {[%clk 0:00:50.7]} 49... Rc4 {[%clk 0:00:20.1]} 50. Nf4
{[%clk 0:00:32.3]} 50... Rxc2+ {[%clk 0:00:19.6]} 51. Kg3 {[%clk 0:00:33.2]}
51... Ra2 {[%clk 0:00:14.1]} 52. Nd3+ {[%clk 0:00:26]} 52... Kc4 {[%clk
0:00:12.9]} 53. Ne5+ {[%clk 0:00:24.1]} 53... Kb5 {[%clk 0:00:11.8]} 54. Nd7+
{[%clk 0:00:16.3]} 54... Kc6 {[%clk 0:00:11.7]} 55. Nf6 {[%clk 0:00:14.2]} 55...
Rb2 {[%clk 0:00:07.7]} 56. Kf4 {[%clk 0:00:11.8]} 56... Rb5 {[%clk 0:00:07.3]}
57. Ne4 {[%clk 0:00:04.8]} 57... Rxf5+ {[%clk 0:00:06.6]} 58. Kxf5 {[%clk
0:00:05.7]} 58... Kb5 {[%clk 0:00:07.3]} 59. Ke5 {[%clk 0:00:06.2]} 59... Kxa5
{[%clk 0:00:08.2]} 60. Kd4 {[%clk 0:00:07.1]} 60... Kb4 {[%clk 0:00:08.9]} 61.
Nc5 {[%clk 0:00:06.6]} 61... a5 {[%clk 0:00:09.4]} 62. Kd5 {[%clk 0:00:07.5]}
62... Kb5 {[%clk 0:00:09.7]} 63. Kd4 {[%clk 0:00:07.7]} 63... a4 {[%clk
0:00:10.6]} 64. Nxa4 {[%clk 0:00:08.1]} 1/2-1/2

[Event "Early-Titled-Tuesday-Blitz-March-19-2024"]
[Site "Chess.com"]
[Date "2024.03.19"]
[Round "11"]
[White "bobo_panda"]
[Black "Eliwood44"]
[Result "0-1"]
[WhiteElo "2353"]
[BlackElo "2531"]
[TimeControl "180+1"]
[EndTime "10:07:33 PDT"]
[Termination "Eliwood44 won on time"]

1. e4 {[%clk 0:03:00.9]} 1... e5 {[%clk 0:02:56.2]} 2. Nf3 {[%clk 0:03:00.7]}
2... Nc6 {[%clk 0:02:56.4]} 3. d4 {[%clk 0:03:00.7]} 3... exd4 {[%clk
0:02:56.4]} 4. Nxd4 {[%clk 0:03:00.9]} 4... Qh4 {[%clk 0:02:53.5]} 5. Nc3 {[%clk
0:02:59.2]} 5... Bc5 {[%clk 0:02:50.1]} 6. Be3 {[%clk 0:02:58.1]} 6... Nxd4
{[%clk 0:02:42.8]} 7. Bxd4 {[%clk 0:02:58]} 7... Bxd4 {[%clk 0:02:41.8]} 8. Qxd4
{[%clk 0:02:58.9]} 8... Nf6 {[%clk 0:02:41.1]} 9. g3 {[%clk 0:02:58.9]} 9... Qg4
{[%clk 0:02:38.5]} 10. Bg2 {[%clk 0:02:59.1]} 10... O-O {[%clk 0:02:35.4]} 11.
h3 {[%clk 0:02:58.9]} 11... Qe6 {[%clk 0:02:35]} 12. O-O {[%clk 0:02:58.5]}
12... d6 {[%clk 0:02:35.5]} 13. f4 {[%clk 0:02:57.8]} 13... Bd7 {[%clk
0:02:32.4]} 14. Rae1 {[%clk 0:02:45.5]} 14... Rfe8 {[%clk 0:02:31.1]} 15. g4
{[%clk 0:02:45.7]} 15... Bc6 {[%clk 0:02:28.9]} 16. Nd5 {[%clk 0:02:39.4]} 16...
Bxd5 {[%clk 0:02:22.2]} 17. exd5 {[%clk 0:02:39.2]} 17... Qxe1 {[%clk
0:02:22.7]} 18. Rxe1 {[%clk 0:02:39]} 18... Rxe1+ {[%clk 0:02:23.3]} 19. Kh2
{[%clk 0:02:39.1]} 19... Rae8 {[%clk 0:02:23.3]} 20. Qxa7 {[%clk 0:02:38.4]}
20... R1e2 {[%clk 0:02:21.2]} 21. g5 {[%clk 0:02:29.3]} 21... Nxd5 {[%clk
0:02:20.9]} 22. Qa4 {[%clk 0:02:24.5]} 22... b5 {[%clk 0:02:12.2]} 23. Qxb5
{[%clk 0:02:23.6]} 23... Nxf4 {[%clk 0:02:10.2]} 24. Kg3 {[%clk 0:02:21.7]}
24... Nxg2 {[%clk 0:02:07.9]} 25. a4 {[%clk 0:02:11.6]} 25... Ne1 {[%clk
0:01:53.6]} 26. a5 {[%clk 0:01:43.7]} 26... R2e3+ {[%clk 0:01:48]} 27. Kf2
{[%clk 0:01:40.9]} 27... R3e5 {[%clk 0:01:28.9]} 28. Qb4 {[%clk 0:01:37.5]}
28... Rf5+ {[%clk 0:01:26.1]} 29. Kg3 {[%clk 0:01:36.6]} 29... Rxg5+ {[%clk
0:01:25.1]} 30. Kf4 {[%clk 0:01:36.5]} 30... h6 {[%clk 0:01:13.5]} 31. a6 {[%clk
0:01:35.3]} 31... g6 {[%clk 0:00:53.9]} 32. a7 {[%clk 0:01:04.1]} 32... Rf5+
{[%clk 0:00:53.5]} 33. Kg3 {[%clk 0:01:03.4]} 33... Re3+ {[%clk 0:00:52.1]} 34.
Kh2 {[%clk 0:01:01.8]} 34... Nf3+ {[%clk 0:00:47.1]} 35. Kg2 {[%clk 0:00:59.4]}
35... Re2+ {[%clk 0:00:40.9]} 36. Kg3 {[%clk 0:00:40.3]} 36... Ne1 {[%clk
0:00:39.6]} 37. a8=Q+ {[%clk 0:00:38.3]} 37... Kh7 {[%clk 0:00:39.4]} 38. h4
{[%clk 0:00:13.9]} 38... d5 {[%clk 0:00:36.2]} 39. Qaa3 {[%clk 0:00:09.2]} 39...
Nxc2 {[%clk 0:00:32.6]} 40. Qac3 {[%clk 0:00:04.4]} 40... Nxb4 {[%clk 0:00:29]}
41. Qxb4 {[%clk 0:00:05.3]} 41... Re3+ {[%clk 0:00:27.5]} 42. Kg2 {[%clk
0:00:05.8]} 42... Re4 {[%clk 0:00:26.6]} 43. Qc5 {[%clk 0:00:05.9]} 43... Rc4
{[%clk 0:00:22.1]} 44. Qe7 {[%clk 0:00:05.7]} 44... h5 {[%clk 0:00:17.5]} 45.
Qe1 {[%clk 0:00:04.2]} 45... Rg4+ {[%clk 0:00:16.9]} 46. Kh3 {[%clk 0:00:04.1]}
46... Rf3+ {[%clk 0:00:16.1]} 47. Kh2 {[%clk 0:00:04.6]} 47... Rff4 {[%clk
0:00:16.6]} 48. Qe7 {[%clk 0:00:04.4]} 48... Rxh4+ {[%clk 0:00:16.6]} 49. Kg3
{[%clk 0:00:05]} 49... Rhg4+ {[%clk 0:00:17.1]} 50. Kh3 {[%clk 0:00:05.5]} 50...
Rf5 {[%clk 0:00:17.5]} 51. Qxc7 {[%clk 0:00:05]} 51... Rc4 {[%clk 0:00:17.6]}
52. Qd6 {[%clk 0:00:04.9]} 52... Rc2 {[%clk 0:00:16.6]} 53. Qd7 {[%clk
0:00:04.5]} 53... Rxb2 {[%clk 0:00:15.9]} 54. Qd6 {[%clk 0:00:03.9]} 54... Rb3+
{[%clk 0:00:16.1]} 55. Kg2 {[%clk 0:00:03.7]} 55... Rd3 {[%clk 0:00:15.8]} 56.
Kh2 {[%clk 0:00:03.7]} 56... Rd4 {[%clk 0:00:15.9]} 57. Kg2 {[%clk 0:00:04.1]}
57... Rg4+ {[%clk 0:00:15.9]} 58. Kh3 {[%clk 0:00:04.8]} 58... d4 {[%clk
0:00:15.6]} 59. Qd7 {[%clk 0:00:04.3]} 59... Rf3+ {[%clk 0:00:15.1]} 60. Kh2
{[%clk 0:00:04.8]} 60... d3 {[%clk 0:00:15.2]} 61. Qd5 {[%clk 0:00:05.2]} 61...
Re3 {[%clk 0:00:14.9]} 62. Qxf7+ {[%clk 0:00:04.9]} 62... Kh6 {[%clk 0:00:13.1]}
63. Qf8+ {[%clk 0:00:05.4]} 63... Kg5 {[%clk 0:00:12.6]} 64. Qd8+ {[%clk
0:00:05.3]} 64... Kf5 {[%clk 0:00:12.4]} 65. Qd7+ {[%clk 0:00:04.8]} 65... Ke4
{[%clk 0:00:12.2]} 66. Qe6+ {[%clk 0:00:04.7]} 66... Kf3 {[%clk 0:00:12.6]} 67.
Qf6+ {[%clk 0:00:04.2]} 67... Ke2 {[%clk 0:00:11.9]} 68. Qb2+ {[%clk 0:00:04.7]}
68... d2 {[%clk 0:00:12.3]} 69. Qb5+ {[%clk 0:00:04.7]} 69... Ke1 {[%clk
0:00:11.2]} 70. Qa5 {[%clk 0:00:03.3]} 70... Rd4 {[%clk 0:00:07.6]} 0-1

[Event "Early-Titled-Tuesday-Blitz-March-19-2024"]
[Site "Chess.com"]
[Date "2024.03.19"]
[Round "11"]
[White "DvaHrasta"]
[Black "Zavgorodniy_Sergiy"]
[Result "0-1"]
[WhiteElo "2499"]
[BlackElo "2625"]
[TimeControl "180+1"]
[EndTime "10:07:41 PDT"]
[Termination "Zavgorodniy_Sergiy won on time"]

1. c4 {[%clk 0:03:00.9]} 1... c5 {[%clk 0:02:59.9]} 2. g3 {[%clk 0:03:01.1]}
2... Nc6 {[%clk 0:03:00.8]} 3. Bg2 {[%clk 0:03:01.4]} 3... g6 {[%clk 0:03:01.5]}
4. Nc3 {[%clk 0:03:01.5]} 4... Bg7 {[%clk 0:03:02.2]} 5. Nf3 {[%clk 0:03:01.8]}
5... e6 {[%clk 0:03:02.4]} 6. O-O {[%clk 0:03:01.5]} 6... Nge7 {[%clk
0:03:03.1]} 7. d4 {[%clk 0:03:00.9]} 7... cxd4 {[%clk 0:03:02.4]} 8. Nb5 {[%clk
0:03:00.7]} 8... d5 {[%clk 0:03:03.1]} 9. cxd5 {[%clk 0:03:00.7]} 9... Nxd5
{[%clk 0:03:04]} 10. Nbxd4 {[%clk 0:02:58.8]} 10... Nxd4 {[%clk 0:03:04.9]} 11.
Nxd4 {[%clk 0:02:59]} 11... O-O {[%clk 0:03:05.6]} 12. e4 {[%clk 0:02:59.2]}
12... Nb6 {[%clk 0:03:04.1]} 13. Nb3 {[%clk 0:02:58.4]} 13... Bd7 {[%clk
0:03:02.4]} 14. Qe2 {[%clk 0:02:57.9]} 14... Bc6 {[%clk 0:03:01.5]} 15. Be3
{[%clk 0:02:51.4]} 15... Qe7 {[%clk 0:03:00.1]} 16. Bc5 {[%clk 0:02:50.3]} 16...
Qf6 {[%clk 0:02:58.6]} 17. Bxf8 {[%clk 0:02:46.9]} 17... Rxf8 {[%clk 0:02:59.5]}
18. e5 {[%clk 0:02:46.1]} 18... Qxe5 {[%clk 0:02:57.5]} 19. Qxe5 {[%clk
0:02:46]} 19... Bxe5 {[%clk 0:02:58.4]} 20. Bxc6 {[%clk 0:02:46]} 20... bxc6
{[%clk 0:02:59.3]} 21. Rac1 {[%clk 0:02:44.5]} 21... Bxb2 {[%clk 0:02:59]} 22.
Rxc6 {[%clk 0:02:43.9]} 22... Nd5 {[%clk 0:02:59.6]} 23. Ra6 {[%clk 0:02:38.8]}
23... Rc8 {[%clk 0:02:58.9]} 24. Rxa7 {[%clk 0:02:35.1]} 24... Rc2 {[%clk
0:02:58.8]} 25. a4 {[%clk 0:02:27]} 25... Kg7 {[%clk 0:02:56.1]} 26. a5 {[%clk
0:02:25.2]} 26... Ba3 {[%clk 0:02:55.2]} 27. Rb7 {[%clk 0:02:16.6]} 27... Nb4
{[%clk 0:02:19.4]} 28. Ra1 {[%clk 0:02:03.8]} 28... Bb2 {[%clk 0:02:18.3]} 29.
Ra2 {[%clk 0:01:59.6]} 29... Nxa2 {[%clk 0:02:17.4]} 30. a6 {[%clk 0:01:52.2]}
30... Rc8 {[%clk 0:02:01.6]} 31. a7 {[%clk 0:01:39.3]} 31... Ra8 {[%clk
0:01:59.5]} 32. Na5 {[%clk 0:01:37.5]} 32... Bd4 {[%clk 0:01:46.3]} 33. Nc6
{[%clk 0:01:36]} 33... Bxa7 {[%clk 0:01:38.2]} 34. Rxa7 {[%clk 0:01:29.8]} 34...
Rxa7 {[%clk 0:01:38.1]} 35. Nxa7 {[%clk 0:01:29.8]} 35... Kf6 {[%clk 0:01:38.3]}
36. Nc6 {[%clk 0:01:28.8]} 36... Nc1 {[%clk 0:01:35]} 37. Kg2 {[%clk 0:01:26]}
37... Nd3 {[%clk 0:01:34.9]} 38. f4 {[%clk 0:01:24.2]} 38... h6 {[%clk 0:01:33]}
39. Kf3 {[%clk 0:01:17.1]} 39... Nc5 {[%clk 0:01:32.5]} 40. g4 {[%clk
0:01:10.1]} 40... g5 {[%clk 0:01:30.6]} 41. Ne5 {[%clk 0:01:01.7]} 41... Nb7
{[%clk 0:01:20.1]} 42. Nd7+ {[%clk 0:01:01.3]} 42... Ke7 {[%clk 0:01:19.4]} 43.
Ne5 {[%clk 0:00:54.5]} 43... Nd6 {[%clk 0:01:15.2]} 44. h3 {[%clk 0:00:50]}
44... Nb5 {[%clk 0:01:11.3]} 45. Ke4 {[%clk 0:00:45.2]} 45... Nc7 {[%clk
0:01:10]} 46. Nf3 {[%clk 0:00:42.5]} 46... f6 {[%clk 0:01:08.8]} 47. h4 {[%clk
0:00:40.2]} 47... gxf4 {[%clk 0:01:00.8]} 48. Kxf4 {[%clk 0:00:38.4]} 48... Nd5+
{[%clk 0:01:00.8]} 49. Ke4 {[%clk 0:00:37.9]} 49... Kf7 {[%clk 0:00:58.2]} 50.
Nd4 {[%clk 0:00:34.8]} 50... Nc3+ {[%clk 0:00:57]} 51. Kd3 {[%clk 0:00:33.5]}
51... Na4 {[%clk 0:00:57.1]} 52. Ke4 {[%clk 0:00:30.5]} 52... Nc5+ {[%clk
0:00:57.1]} 53. Kf3 {[%clk 0:00:30.7]} 53... Kg6 {[%clk 0:00:57]} 54. Nc6 {[%clk
0:00:28.5]} 54... h5 {[%clk 0:00:54]} 55. Ne7+ {[%clk 0:00:19.6]} 55... Kf7
{[%clk 0:00:53.6]} 56. Nc6 {[%clk 0:00:17.6]} 56... hxg4+ {[%clk 0:00:53]} 57.
Kxg4 {[%clk 0:00:17.2]} 57... Kg6 {[%clk 0:00:49.2]} 58. h5+ {[%clk 0:00:16.9]}
58... Kh6 {[%clk 0:00:48.3]} 59. Nd8 {[%clk 0:00:13.8]} 59... Kg7 {[%clk
0:00:47]} 60. Nc6 {[%clk 0:00:13.2]} 60... Nd7 {[%clk 0:00:44.7]} 61. Nd8 {[%clk
0:00:11.3]} 61... Nf8 {[%clk 0:00:44.6]} 62. Nc6 {[%clk 0:00:09.2]} 62... Kh6
{[%clk 0:00:43.5]} 63. Nd8 {[%clk 0:00:06.5]} 63... f5+ {[%clk 0:00:40]} 64. Kh4
{[%clk 0:00:06]} 64... Kg7 {[%clk 0:00:36.6]} 65. Kg5 {[%clk 0:00:05.2]} 65...
Nh7+ {[%clk 0:00:36.5]} 66. Kf4 {[%clk 0:00:05.2]} 66... Kf6 {[%clk 0:00:36.5]}
67. Nc6 {[%clk 0:00:05.4]} 67... Ng5 {[%clk 0:00:32.5]} 68. h6 {[%clk
0:00:03.6]} 68... Nf7 {[%clk 0:00:23.8]} 69. h7 {[%clk 0:00:02.4]} 69... Kg7
{[%clk 0:00:19.5]} 70. Ne7 {[%clk 0:00:02.5]} 70... Nh6 {[%clk 0:00:12.6]} 0-1

[Event "Early-Titled-Tuesday-Blitz-March-19-2024"]
[Site "Chess.com"]
[Date "2024.03.19"]
[Round "11"]
[White "superchess02"]
[Black "mitrabhaa"]
[Result "0-1"]
[WhiteElo "2829"]
[BlackElo "3055"]
[TimeControl "180+1"]
[EndTime "10:07:43 PDT"]
[Termination "mitrabhaa won by checkmate"]

1. d4 {[%clk 0:03:00.9]} 1... Nf6 {[%clk 0:02:57.9]} 2. c4 {[%clk 0:03:01.8]}
2... e6 {[%clk 0:02:57.8]} 3. Nc3 {[%clk 0:03:02.2]} 3... Bb4 {[%clk 0:02:58.4]}
4. e3 {[%clk 0:03:01.9]} 4... O-O {[%clk 0:02:59]} 5. Bd3 {[%clk 0:03:02.6]}
5... d5 {[%clk 0:02:58.2]} 6. Nf3 {[%clk 0:03:03.3]} 6... dxc4 {[%clk 0:02:58]}
7. Bxc4 {[%clk 0:03:04.2]} 7... c5 {[%clk 0:02:58.7]} 8. O-O {[%clk 0:03:04.9]}
8... cxd4 {[%clk 0:02:58.6]} 9. exd4 {[%clk 0:03:04.8]} 9... b6 {[%clk
0:02:59.3]} 10. Bg5 {[%clk 0:03:05]} 10... Bb7 {[%clk 0:02:59.9]} 11. Rc1 {[%clk
0:03:05.1]} 11... Nbd7 {[%clk 0:03:00.1]} 12. Qe2 {[%clk 0:03:05]} 12... Rc8
{[%clk 0:03:00]} 13. Bd3 {[%clk 0:03:05]} 13... Bxc3 {[%clk 0:02:59.1]} 14. bxc3
{[%clk 0:03:04.9]} 14... h6 {[%clk 0:02:59.6]} 15. Bh4 {[%clk 0:03:04]} 15...
Qc7 {[%clk 0:02:55.3]} 16. Bg3 {[%clk 0:03:04.1]} 16... Qc6 {[%clk 0:02:52.3]}
17. c4 {[%clk 0:03:04.1]} 17... Qa4 {[%clk 0:02:51.8]} 18. Bd6 {[%clk
0:02:51.2]} 18... Rfe8 {[%clk 0:02:32.9]} 19. Rfd1 {[%clk 0:02:49.8]} 19... Qa5
{[%clk 0:02:30.6]} 20. h3 {[%clk 0:02:11.6]} 20... Qh5 {[%clk 0:02:27.9]} 21.
Qe3 {[%clk 0:02:05.7]} 21... Bxf3 {[%clk 0:02:26.3]} 22. Qxf3 {[%clk 0:02:06.6]}
22... Qxf3 {[%clk 0:02:26.1]} 23. gxf3 {[%clk 0:02:07.5]} 23... e5 {[%clk
0:02:26.1]} 24. c5 {[%clk 0:02:00.8]} 24... exd4 {[%clk 0:02:18.7]} 25. c6
{[%clk 0:02:00.7]} 25... Ne5 {[%clk 0:02:12.2]} 26. Bxe5 {[%clk 0:01:43.7]}
26... Rxe5 {[%clk 0:02:13.1]} 27. Ba6 {[%clk 0:01:42.5]} 27... Rc7 {[%clk
0:02:12.1]} 28. Rxd4 {[%clk 0:01:38.4]} 28... g6 {[%clk 0:02:12.1]} 29. Rd8+
{[%clk 0:01:32.4]} 29... Kg7 {[%clk 0:02:10.7]} 30. Bb7 {[%clk 0:01:33.1]} 30...
Ra5 {[%clk 0:01:34]} 31. Rc8 {[%clk 0:01:01.1]} 31... Rxc8 {[%clk 0:01:22.1]}
32. Bxc8 {[%clk 0:01:02]} 32... Nd5 {[%clk 0:01:18.6]} 33. Rd1 {[%clk
0:00:49.5]} 33... Rc5 {[%clk 0:01:17.8]} 34. Bb7 {[%clk 0:00:49]} 34... Nc7
{[%clk 0:00:54]} 35. Rd7 {[%clk 0:00:48.3]} 35... Ne6 {[%clk 0:00:54.6]} 36. Kf1
{[%clk 0:00:44.7]} 36... Rc2 {[%clk 0:00:52.8]} 37. a4 {[%clk 0:00:42.1]} 37...
h5 {[%clk 0:00:48.3]} 38. h4 {[%clk 0:00:41.7]} 38... Kf6 {[%clk 0:00:46.2]} 39.
Ke1 {[%clk 0:00:40.3]} 39... Nc5 {[%clk 0:00:32.5]} 40. Rd4 {[%clk 0:00:34.5]}
40... Rc1+ {[%clk 0:00:27.9]} 41. Ke2 {[%clk 0:00:34.4]} 41... Ne6 {[%clk
0:00:27]} 42. Rd7 {[%clk 0:00:31.8]} 42... Rc4 {[%clk 0:00:21.7]} 43. Ke3 {[%clk
0:00:27.5]} 43... Rc3+ {[%clk 0:00:19.6]} 44. Kd2 {[%clk 0:00:23.6]} 44... Rc5
{[%clk 0:00:19.3]} 45. Kd3 {[%clk 0:00:22.4]} 45... a6 {[%clk 0:00:18.7]} 46.
Ke3 {[%clk 0:00:18]} 46... b5 {[%clk 0:00:18.9]} 47. a5 {[%clk 0:00:15.3]} 47...
b4 {[%clk 0:00:18.7]} 48. Bxa6 {[%clk 0:00:14.9]} 48... Rxc6 {[%clk 0:00:18.9]}
49. Bd3 {[%clk 0:00:15.4]} 49... Rc3 {[%clk 0:00:16.5]} 50. Kd2 {[%clk
0:00:13.5]} 50... Ra3 {[%clk 0:00:15.9]} 51. a6 {[%clk 0:00:12.8]} 51... Nc5
{[%clk 0:00:16.3]} 52. Rd5 {[%clk 0:00:08.9]} 52... Nxd3 {[%clk 0:00:15.9]} 53.
Rxd3 {[%clk 0:00:09.2]} 53... Rxa6 {[%clk 0:00:16.5]} 54. Rb3 {[%clk 0:00:09.4]}
54... Rb6 {[%clk 0:00:16]} 55. Kd3 {[%clk 0:00:09.6]} 55... Kf5 {[%clk
0:00:16.4]} 56. Kc4 {[%clk 0:00:09]} 56... Kf4 {[%clk 0:00:16.4]} 57. Kc5 {[%clk
0:00:09.4]} 57... Rb8 {[%clk 0:00:16.8]} 58. Kd6 {[%clk 0:00:10.1]} 58... f6
{[%clk 0:00:15]} 59. Ke6 {[%clk 0:00:10.1]} 59... Rb6+ {[%clk 0:00:14.6]} 60.
Kf7 {[%clk 0:00:10.2]} 60... g5 {[%clk 0:00:15]} 61. Kg6 {[%clk 0:00:10.3]}
61... gxh4 {[%clk 0:00:15]} 62. Kxh5 {[%clk 0:00:10.8]} 62... h3 {[%clk
0:00:15.6]} 63. Kh4 {[%clk 0:00:11.6]} 63... h2 {[%clk 0:00:15.9]} 64. Rb1
{[%clk 0:00:12.5]} 64... Rb8 {[%clk 0:00:14.6]} 65. Kh3 {[%clk 0:00:13.1]} 65...
h1=Q+ {[%clk 0:00:14.3]} 66. Rxh1 {[%clk 0:00:13.3]} 66... Rh8+ {[%clk
0:00:14.2]} 67. Kg2 {[%clk 0:00:14.2]} 67... Rxh1 {[%clk 0:00:15.1]} 68. Kxh1
{[%clk 0:00:15.1]} 68... b3 {[%clk 0:00:15.7]} 69. Kg1 {[%clk 0:00:16]} 69... b2
{[%clk 0:00:16.1]} 70. Kg2 {[%clk 0:00:16.9]} 70... b1=Q {[%clk 0:00:16.8]} 71.
Kh3 {[%clk 0:00:17.8]} 71... Qh1# {[%clk 0:00:16.7]} 0-1